Cogmind - Beta 15 --- EXPLORER MODE // 2025.06.20 @ 17:16:59 // Winter2019/RPGLIKE Player: User15V Result: Self-destructed Performance ------------- Evolutions (1) 500 Regions Visited (5) 1000 Robots Destroyed (12) 60 Value Destroyed (233) 233 Prototype IDs (24) 480 Alien Tech Used (0) 0 Bonus (560) 560 TOTAL SCORE: 2833 Bonus ------- Pacifist 200 Follower Combat Kills 60 Aligned with FarCom 300 Cogmind --------- Core Integrity 558/600 Matter 300/300 Energy 271/275 System Corruption 0% Temperature Cool (0) Movement Walking (90) Location -9/Exiles Parts ------- > --- POWER (1) -------- Deuterium Engine > --- PROPULSION (2) --- VSS Leg VSS Leg > --- UTILITY (4) ------ Experimental Sensor Array Power Shielding Medium Armor Plating > --- WEAPON (2) ------- Assault Rifle Shotgun > --- INVENTORY (3) ---- Light Nuclear Core Improved Grenade Launcher Plasma Cutter Peak State ------------ > --- POWER ------------ Deuterium Engine > --- PROPULSION ------- VSS Leg VSS Leg > --- UTILITY ---------- Experimental Sensor Array Power Shielding Medium Armor Plating > --- WEAPON ----------- Assault Rifle Shotgun > --- INVENTORY -------- Light Nuclear Core Improved Grenade Launcher [Rating: 24] Favorites ----------- Power Light Nuclear Core Engine Deuterium Engine Power Core Light Nuclear Core Propulsion Aluminum Leg Leg Aluminum Leg Utility Experimental Sensor Array Device Experimental Sensor Array Protection Medium Armor Plating Weapon Shotgun Ballistic Gun Shotgun Launcher Grenade Launcher Build | -11 -10 -10 -9 -9 -9 ------- Run | Yrd Mat Min Mat Min Exi Slots Evolved 5 | . . 5 . . . Power . | . . . . . . Propulsion 1 | . . 1 . . . Utility 3 | . . 3 . . . Weapon 1 | . . 1 . . . Parts Attached 13 | . . 5 8 . . Power 3 | . . 1 2 . . Engine 2 | . . . 2 . . Core 1 | . . 1 . . . Reactor . | . . . . . . Propulsion 4 | . . 2 2 . . Treads . | . . . . . . Leg 4 | . . 2 2 . . Wheel . | . . . . . . Hover . | . . . . . . Flight . | . . . . . . Utility 3 | . . 1 2 . . Device 1 | . . 1 . . . Storage . | . . . . . . Processor . | . . . . . . Hackware . | . . . . . . Protection 2 | . . . 2 . . Artifact . | . . . . . . Weapon 3 | . . 1 2 . . Energy Gun . | . . . . . . Energy Cannon . | . . . . . . Ballistic Gun 2 | . . . 2 . . Ballistic Cannon . | . . . . . . Launcher 1 | . . 1 . . . Special Weapon . | . . . . . . Impact Weapon . | . . . . . . Slashing Weapon . | . . . . . . Piercing Weapon . | . . . . . . Special Melee Weapon . | . . . . . . Unidentified Prototypes 1 | . . 1 . . . Parts Lost . | . . . . . . Power . | . . . . . . Propulsion . | . . . . . . Utility . | . . . . . . Weapon . | . . . . . . Highest Loss Streak . | . . . . . . To Critical Strikes . | . . . . . . Average Backups 1 | . . . 2 3 3 Power . | . . . . 1 1 Propulsion . | . . . . . . Utility . | . . . . . . Weapon . | . . . . 1 1 Tool/Special . | . . . . . . Unused Backups 2 | . . . . . 2 Power . | . . . . . . Propulsion . | . . . . . . Utility . | . . . . . . Weapon 1 | . . . . . 1 Tool/Special 1 | . . . . . 1 Average Slot Usage (%) 57 | . . 35 77 88 88 Engine 5 | . . . 10 11 11 Core 4 | . . 8 . . . Leg 19 | . . 17 22 22 22 Device 8 | . . 7 11 11 11 Protection 8 | . . . 12 22 22 Ballistic Gun 10 | . . . 19 22 22 Launcher 1 | . . 2 1 . . Peak Build Rating 24 | . . 15 24 24 24 Average Rating 15 | . . 10 21 24 24 On Entrance 10 | . . . 15 24 24 Naked Turns 131 | . 24 107 . . . Heaviest Build 23 | . . 9 23 23 23 Greatest Support 24 | 3 3 20 24 24 24 Greatest Overweight (x) 1 | . . . 1 . . Average Overweight (x) . | . . . . . . Largest Inventory Capacity 3 | . . . 3 3 3 Average Capacity 1 | . . . 2 3 3 Most Carried 3 | . . . 3 3 3 Average Carried 1 | . . . 2 3 3 Final Capacity 3 | . . . 3 3 3 Final Carried 3 | . . . 3 3 3 Class Distribution -------------------- 100% | Hacker-Mutant Dominant Class ---------------- Hacker-Mutant | -10/Materials Hacker-Mutant | -10/Mines Hacker-Mutant | -9/Materials Hacker-Mutant | -9/Mines Hacker-Mutant | -9/Exiles Resources | -11 -10 -10 -9 -9 -9 ----------- Run | Yrd Mat Min Mat Min Exi Matter Collected 481 | 39 . 191 219 32 . Remotely . | . . . . . . Salvage Created 253 | . . . 253 . . Parts 21 | . . . 21 . . Haulers Intercepted . | . . . . . . Recyclers Shooed 1 | . . . 1 . . Parts Field Recycled . | . . . . . . Retrieved Matter . | . . . . . . Parts Self-Destructed . | . . . . . . Prevented . | . . . . . . Kills | -11 -10 -10 -9 -9 -9 ------- Run | Yrd Mat Min Mat Min Exi Combat Hostiles Destroyed 11 | . . . 11 . . Guns 11 | . . . 11 . . Classes Destroyed 4 | . . . 4 . . Watcher 1 | . . . 1 . . Swarmer 7 | . . . 7 . . Grunt 3 | . . . 3 . . Sentry 1 | . . . 1 . . Best Kill Streak 5 | . . . 5 . . Combat Bots Only 5 | . . . 5 . . Max Kills in Single Turn 2 | . . . 2 . . Gunslinging 1 | . . . 1 . . Exploded . | . . . . . . Melee . | . . . . . . Uniques/NPCs Destroyed . | . . . . . . Combat | -11 -10 -10 -9 -9 -9 -------- Run | Yrd Mat Min Mat Min Exi Hostile Shots Fired 48 | . . . 48 . . Missed 14 | . . . 14 . . Hits 34 | . . . 34 . . Projectile 34 | . . . 34 . . Damage Taken 201 | . . . 201 . . Core 137 | . . . 137 . . Absorbed by Shields . | . . . . . . Redirected to Core 105 | . . . 105 . . Ignored by Resistances 137 | . . . 137 . . Core Remaining (%) 100 | 100 . 100 . . . Volleys Fired 25 | . . . 25 . . Largest 2 | . . . 2 . . Hottest 43 | . . . 43 . . Shots Fired 44 | . . . 44 . . Gun 44 | . . . 44 . . Cannon . | . . . . . . Launcher . | . . . . . . Special . | . . . . . . Kinetic 44 | . . . 44 . . Thermal . | . . . . . . Explosive . | . . . . . . Electromagnetic . | . . . . . . Robot Hit Streak 17 | . . . 17 . . Robot Miss Streak 3 | . . . 3 . . Penetration Max . | . . . . . . Secondary Targets 2 | . . . 2 . . Max Gunslinging Chain 1 | . . . 1 . . Shots Hit Robots 37 | . . . 37 . . Core Hits 16 | . . . 16 . . Critical Kills . | . . . . . . Critical Parts Destroyed 2 | . . . 2 . . Critical Strikes 2 | . . . 2 . . Destroy 2 | . . . 2 . . Melee Attacks . | . . . . . . Impact . | . . . . . . Slashing . | . . . . . . Piercing . | . . . . . . Sneak Attacks . | . . . . . . Combat Hostiles . | . . . . . . Follow-up Attacks . | . . . . . . Damage Inflicted 529 | . . . 529 . . Guns 529 | . . . 529 . . Cannons . | . . . . . . Explosions . | . . . . . . Melee . | . . . . . . Ramming . | . . . . . . Kinetic 529 | . . . 529 . . Thermal . | . . . . . . Explosive . | . . . . . . Electromagnetic . | . . . . . . Impact . | . . . . . . Slashing . | . . . . . . Piercing . | . . . . . . Highest Corruption . | . . . . . . Average Corruption . | . . . . . . Corruption Purged . | . . . . . . Corruption Blocked . | . . . . . . Overload Shots . | . . . . . . Overflow Damage . | . . . . . . Projectiles . | . . . . . . Explosions . | . . . . . . Melee . | . . . . . . Knockbacks . | . . . . . . Impact . | . . . . . . Kinetic . | . . . . . . Secondary . | . . . . . . Self-Inflicted Damage . | . . . . . . Shots . | . . . . . . Rammed . | . . . . . . Targets Rammed . | . . . . . . Kicked . | . . . . . . Crushed . | . . . . . . Highest Temperature 14 | . . . 14 . . Average Temperature 5 | . . . 5 . . Received Heat Transfer 75 | . . . 75 . . Siege Activations . | . . . . . . Martial Activations . | . . . . . . Shielding Activations . | . . . . . . Robots Disrupted . | . . . . . . Combat Hostiles . | . . . . . . Robots Corrupted . | . . . . . . Combat Hostiles . | . . . . . . Parts Fried . | . . . . . . Impact Corruptions . | . . . . . . Robots Melted . | . . . . . . Combat Hostiles . | . . . . . . Parts Melted . | . . . . . . Heat Transferred . | . . . . . . Parts Sabotaged . | . . . . . . Parts Stolen . | . . . . . . Parts Stripped . | . . . . . . Power Chain Reactions . | . . . . . . Alert | -11 -10 -10 -9 -9 -9 ------- Run | Yrd Mat Min Mat Min Exi Maximum Alert Level . | . . . . . . Low Security (%) 100 | 100 100 100 100 100 . Level 1 . | . . . . . . Level 2 . | . . . . . . Level 3 . | . . . . . . Level 4 . | . . . . . . Level 5 . | . . . . . . High Security . | . . . . . . Max Security . | . . . . . . Peak Influence 122 | . 15 50 122 25 . Initial 25 | . . . . 25 . Average 21 | . 4 2 65 4 . Influence Increases 352 | . 15 50 287 . . Destroy 0b10 Robot/C 260 | . . 40 220 . . Destroy 0b10 Robot/NC 5 | . . . 5 . . Destroy Leader 72 | . . 10 62 . . Partial Spotted 15 | . 15 . . . . Influence Decreases 352 | . 15 50 195 92 . Entered New Map 67 | . . . . 67 . Time Decay 285 | . 15 50 195 25 . Squads Dispatched 2 | . . . 2 . . Investigation . | . . . . . . Extermination . | . . . . . . Reinforcement 2 | . . . 2 . . Assault . | . . . . . . Garrison . | . . . . . . Intercept . | . . . . . . Searches Triggered . | . . . . . . Construction Impeded . | . . . . . . Haulers Reinforced . | . . . . . . Active Scanning Responses . | . . . . . . Cargo Convoy Interrupts . | . . . . . . Stealth | -11 -10 -10 -9 -9 -9 --------- Run | Yrd Mat Min Mat Min Exi Distress Signals . | . . . . . . Communications Jammed . | . . . . . . Distress Signals . | . . . . . . Times Spotted 15 | . 1 . 14 . . Peak Tracking Total 5 | . 1 . 5 . . Tactical Retreats . | . . . . . . Traps | -11 -10 -10 -9 -9 -9 ------- Run | Yrd Mat Min Mat Min Exi Traps Triggered . | . . . . . . Indirectly . | . . . . . . Trap Hack Attempts . | . . . . . . Triggered . | . . . . . . Disarmed . | . . . . . . Reprogrammed . | . . . . . . Reused . | . . . . . . Traps Extracted . | . . . . . . Installed . | . . . . . . Triggered . | . . . . . . Machines | -11 -10 -10 -9 -9 -9 ---------- Run | Yrd Mat Min Mat Min Exi Machines Disabled . | . . . . . . Max in Single Turn . | . . . . . . Machines Repaired . | . . . . . . Machines Dismantled . | . . . . . . Machines Sabotaged . | . . . . . . Overloaded Fab Kills . | . . . . . . Hacking | -11 -10 -10 -9 -9 -9 --------- Run | Yrd Mat Min Mat Min Exi Machines Accessed 1 | . . . . . 1 Terminals . | . . . . . . Fabricators . | . . . . . . Repair Stations . | . . . . . . Recycling Units . | . . . . . . Scanalyzers . | . . . . . . Garrison Access . | . . . . . . Total Hacks 1 | . . . . . 1 Successful 1 | . . . . . 1 Failed . | . . . . . . Catastrophic . | . . . . . . Database Lockouts . | . . . . . . Manual 1 | . . . . . 1 Terminals . | . . . . . . Fabricators . | . . . . . . Repair Stations . | . . . . . . Recycling Units . | . . . . . . Scanalyzers . | . . . . . . Garrison Access . | . . . . . . Terminal Hacks 1 | . . . . . 1 Proto ID Catalog 1 | . . . . . 1 Fabricator Hacks . | . . . . . . Repair Station Hacks . | . . . . . . Recycling Unit Hacks . | . . . . . . Scanalyzer . | . . . . . . Garrison Access Hacks . | . . . . . . Unauthorized Hacks . | . . . . . . Terminals . | . . . . . . Fabricators . | . . . . . . Repair Stations . | . . . . . . Recycling Units . | . . . . . . Scanalyzers . | . . . . . . Garrison Access . | . . . . . . Data Cores Recovered . | . . . . . . Used . | . . . . . . Hacking Detections . | . . . . . . Full Trace Events . | . . . . . . Feedback Events . | . . . . . . Feedback Blocked . | . . . . . . Robot Schematics Acquired . | . . . . . . Robots Built . | . . . . . . Authchips . | . . . . . . Time . | . . . . . . Total Robot Build Rating . | . . . . . . Part Schematics Acquired . | . . . . . . Parts Built . | . . . . . . Authchips . | . . . . . . Time . | . . . . . . Total Part Build Rating . | . . . . . . Parts Repaired . | . . . . . . Time . | . . . . . . Parts Recycled . | . . . . . . Recycled Matter . | . . . . . . Retrieved Matter . | . . . . . . Retrieved Components . | . . . . . . Parts Scanalyzed . | . . . . . . Part Schematics Acquired . | . . . . . . Parts Damaged . | . . . . . . Bothacking | -11 -10 -10 -9 -9 -9 ------------ Run | Yrd Mat Min Mat Min Exi Used RIF Installer . | . . . . . . Robots Hacked . | . . . . . . Non-combat . | . . . . . . Combat . | . . . . . . Robot Hacks Applied . | . . . . . . Relay Couplers Released . | . . . . . . Fabnet Peak Effective % . | . . . . . . Robots Rewired . | . . . . . . Allies Hacked . | . . . . . . Hacks Repelled . | . . . . . . Allies | -11 -10 -10 -9 -9 -9 -------- Run | Yrd Mat Min Mat Min Exi Total Allies 6 | . . 1 . 5 . Largest Group 5 | . . 1 . 5 5 Highest-Rated Group 89 | . . 31 . 89 89 Highest-Rated Ally 31 | . . 31 . 31 31 Total Orders . | . . . . . . Ally Attacks 6 | . . 6 . . . Total Damage 105 | . . 105 . . . Kills 2 | . . 2 . . . Allies Corrupted . | . . . . . . Allies Melted . | . . . . . . Intel | -11 -10 -10 -9 -9 -9 ------- Run | Yrd Mat Min Mat Min Exi Active Infowar (turns) 981 | . . 393 332 155 101 Sensors 981 | . . 393 332 155 101 Robot Analysis Total . | . . . . . . Derelict Logs Recovered . | . . . . . . Drone Launches . | . . . . . . Drone Recoveries . | . . . . . . Exploration | -11 -10 -10 -9 -9 -9 ------------- Run | Yrd Mat Min Mat Min Exi Turns Passed 1209 | 10 24 587 332 155 101 Spaces Moved 1071 | 19 47 558 221 114 112 Core 256 | 19 47 190 . . . Treads . | . . . . . . Legs 815 | . . 368 221 114 112 Wheels . | . . . . . . Hover . | . . . . . . Flight . | . . . . . . Fastest Speed 50 | 50 50 50 90 90 90 Average Speed 92 | 50 50 96 99 90 90 Slowest Speed 190 | 50 50 120 190 90 90 Overloaded Moves . | . . . . . . Propulsion Burnouts . | . . . . . . Robots Hopped . | . . . . . . Potential Cave-ins . | . . . . . . Cave-ins Triggered . | . . . . . . Exploration Rate (%) 33 | 4 17 96 25 19 40 Regions Visited 5 Branch Regions 3 Pre-discovered Areas 1 | . . . . 1 . Known Exits Taken 5 | 1 1 1 1 1 . Unknown Exits Taken . | . . . . . . Scrap Searched . | . . . . . . Spaces Dug . | . . . . . . Terrain Destroyed . | . . . . . . Melee . | . . . . . . Projectile . | . . . . . . AOE . | . . . . . . Terrain Rammed . | . . . . . . Walls Destroyed . | . . . . . . Machines Disabled . | . . . . . . Actions | -11 -10 -10 -9 -9 -9 --------- Run | Yrd Mat Min Mat Min Exi Total 1236 | 18 46 606 288 166 112 Wait 113 | . . 44 16 53 . Move 1066 | 18 46 557 220 113 112 Hop . | . . . . . . Pick Up 5 | . . . 5 . . Fast Attach 11 | . . 5 6 . . Attach 1 | . . . 1 . . Detach . | . . . . . . Swap 1 | . . . 1 . . Drop 5 | . . . 5 . . Fire 25 | . . . 25 . . Melee . | . . . . . . Ram . | . . . . . . Kick . | . . . . . . Crush . | . . . . . . Escape Stasis . | . . . . . . Rewire . | . . . . . . Trap . | . . . . . . Miscellaneous 9 | . . . 9 . . Route ------- -11/Scrapyard -10/Materials -10/Mines (discovered 3 exits: *Mat x2 / *Sub) -9/Materials (discovered 2 exits: *Mat / *Min) -9/Mines -9/Exiles History --------- Turn | Location | Event 3 | -11/Scrapyard | Identified exit to Materials 3 | -11/Scrapyard | Discovered exit to Materials (range 15) 11 | -11/Scrapyard | Entered Materials 28 | -10/Materials | Identified exit to Mines 28 | -10/Materials | Discovered exit to Mines (range 13) 35 | -10/Materials | Entered Mines 98 | -10/Mines | Received a Mining Laser from a helpful Derelict 113 | -10/Mines | Identified exit to Materials 113 | -10/Mines | Discovered exit to Materials (range 13) 143 | -10/Mines | Upgraded with Propulsion slot (x1) 143 | -10/Mines | Upgraded with Utility slot (x3) 143 | -10/Mines | Upgraded with Weapon slot (x1) 225 | -10/Mines | Found a damaged Exp. Sensor Array with a note attached 229 | -10/Mines | Found Prototype Device 229 | -10/Mines | Identified Exp. Sensor Array 307 | -10/Mines | Build established: Hacker-Mutant 594 | -10/Mines | Discovered exit to Materials (range 12) 594 | -10/Mines | Identified exit to Subcaves 594 | -10/Mines | Discovered exit to Subcaves (range 10) 622 | -10/Mines | Entered Materials 624 | -9/Materials | Reached level 2 624 | -9/Materials | Reached level 3 689 | -9/Materials | Reached level 4 852 | -9/Materials | Identified exit to Materials 852 | -9/Materials | Discovered exit to Materials (range 7) 949 | -9/Materials | Identified exit to Mines 949 | -9/Materials | Discovered exit to Mines (range 5) 954 | -9/Materials | Entered Mines 956 | -9/Mines | Reached level 5 956 | -9/Mines | Assisted by bots powering up and referring to "LRC-V3" 992 | -9/Mines | Learned location of Storage (-7) 1052 | -9/Mines | Deemed a non-threat by the Exiles lab entrance 1052 | -9/Mines | Identified exit to Exiles 1052 | -9/Mines | Discovered exit to Exiles (range 5) 1109 | -9/Mines | Entered Exiles 1109 | -9/Exiles | Accompanied by 5 allies 1134 | -9/Exiles | Met 8R-AWN 1139 | -9/Exiles | Led the pair of lost Derelicts to a safe place 1146 | -9/Exiles | Met EX-HEX 1172 | -9/Exiles | Met EX-BIN 1182 | -9/Exiles | Aligned with FarCom system 1183 | -9/Exiles | Given EX-Vault access code 1206 | -9/Exiles | Opened EX-Vault 1210 | -9/Exiles | Self-destructed Last Messages --------------- Modified TNC 0b10 Alert Chip Cloak of Protection Skeleton Box Trap Reconfigurator Supersonic Drone Bay Army-in-a-Box PSU Rigger Chronowheel AWS/Thermal Latent Energy Streamer Gui. Plasma Cannon Firepult YOLO Cannon AWS/Gauss XL Autogun Array AWS/Autocannon Field Lobotomy Kit Longsword +1 Deploy-a-Sentry Map ----- +----------------------------------------------------+ | | | | | | | | | | | | | | | | | | | | | | | | | | | | | | | | | | | | | | | | | | | | | | | ?????????????????????????#???????????????????????? | | ?????????????????????####X####???????????????????? | | ?????????????????????#] |@ #???????????????????? | | ?????????????????????# #???????????????????? | | ?????????????????????# == #???????????????????? | | ?????????????????????## ##???????????????????? | | ?????????????????????#X #????????????????????? | | ?????????????????????## #????????????????????? | | ??????????????????????# #????????????????????? | | ??????????????????????# #???#????????????????? | | ??????????????????????# #??""""??????????????? | | ??????????????????????# ## """?????????????? | | ??????????????????????# X""?????????????? | | ??????????????????????# ## """?????????????? | | ???????????????#####??# #??""""??????????????? | | ???????????????""""""?# #???#????????????????? | | ???????????????"""" ## #????????????????????? | | ??????????????#""X" #????????????????????? | | ??????????????#" #????????????????????? | | ??????????????#" ## #????????????????????? | | ??????????????#""""""?# #?#########??????????? | | ??????????????##"###??# #?#"""""""#??????????? | | ??????????????? ??????# #?#"""""""#??????????? | | ??????????????????????# #?#"""""""#??????????? | | ?????????????????????## ###"" """"#??????????? | | ?????????????????????#" """"#??????????? | | ?????????????????????#" """#??????????? | +----------------------------------------------------+ Best States ------------- Heat Dissipation 25 Energy Generation 14 Energy Capacity 275 Matter Stores 300 Matter Capacity 300 Sight Range 16 Robot Scan Range 20 Terrain Scan Density 10 Armor Coverage 225 Resistance: KI 35 Resistance: TH 35 Resistance: EX 35 Resistance: EM 35 Resistance: I 35 Resistance: S 35 Resistance: P 35 Power Shielding 33 Evasion (%) 57 Offensive Hacking 20 Item Schematics ----------------- None Robot Schematics ------------------ None Fabricated ------------ Nothing Repaired ---------- Nothing Alien Tech Used ----------------- None Achievements -------------- None Challenges ------------ None RPGLIKE | -11 -10 -10 -9 -9 -9 --------- Run | Yrd Mat Min Mat Min Exi Levels Raised 4 | . . . 3 1 . XP Earned 12522 | 6000 . 879 4793 500 350 XP Spent 4900 | . . 3400 1500 . . Upgrades 8 | . . 5 3 . . Propulsion Slot 1 | . . 1 . . . Utility Slot 3 | . . 3 . . . Weapon Slot 1 | . . 1 . . . Inventory Capacity 3 | . . . 3 . . Protomatter Created 109 | . . . 109 . . Integrity Restored 184 | . . . 184 . . Core 95 | . . . 95 . . Parts 89 | . . . 89 . . Protomatter Decayed 45 | . . . 45 . . Game ------ Seed WarlordTractorAutogun Manual? 0 Play Time 00:06:56 Cumulative 549.1 hours Start 2025.06.20 @ 17:10:39 End 2025.06.20 @ 17:16:59 Sessions 1 Manual Loads 0 Difficulty Explorer Special Mode Winter2019/RPGLIKE Game No. 242 Rogue 104 Adventurer 111 Explorer 27 Win Type - Total 39 Types 20/5/1/6/1/1/1/1/1/2 Lore% 91 Gallery% 94 Achievement% 94 Wizard Run 0 Options --------- Layout 2 ASCII 0 Keyboard 0 Movement Mouse Keybinds 0 Fullscreen 2 Font 24/Smallcaps Map View 50x44 Zoom Use 0% Tactical HUD 1 Map Filters NONE Filters NONE Steam 1 RUN: a001a0ba-656d-43b8-8519-a229dc2976d6